bitfinex-derivatives/quotes_SOLF0:USTF0_20251107
["timestamp","ask_amount","ask_price","bid_price","bid_amount"]
[1762538053021,4.79470635,160.31,160.25,8.7398]
[1762538053215,4.79470635,160.3,160.26,3.12]
[1762538053416,4.79775794,160.29,160.26,3.16177059]
[1762538053611,0.04317008,160.3,160.27,3.12]
[1762538054529,11.53121072,160.38,160.28,3.12]
[1762538054530,3.17,160.38,160.28,3.12]
[1762538054820,4.7977761,160.37,160.31,3.12]
[1762538055025,4.7977761,160.36,160.31,3.12]
[1762538055321,3.17,160.38,160.31,3.12]
[1762538055516,0.04159303,160.36,160.33,0.04753217]
[1762538056318,4.79805225,160.35,160.33,0.04753217]
[1762538056518,3.21159303,160.36,160.33,0.04753217]
[1762538056719,4.79848602,160.35,160.33,0.04753217]
[1762538056915,3.21159303,160.36,160.33,0.04753217]
[1762538057121,4.79843956,160.35,160.33,0.04753217]
[1762538057327,0.04159303,160.36,160.33,3.16753217]
[1762538059329,0.04159303,160.36,160.35,3.12]
[1762538059526,4.79684317,160.43,160.35,3.12]
[1762538059728,3.17,160.44,160.35,3.12]
[1762538059920,4.79618284,160.43,160.35,3.12]
[1762538060114,3.17,160.44,160.39,8.7347]
[1762538060316,3.17,160.44,160.39,3.12]
[1762538060627,3.17,160.42,160.4,0.03950001]
[1762538060826,0.04741844,160.43,160.4,0.03950001]
[1762538061019,3.21741844,160.43,160.4,0.03950001]
[1762538061226,0.04741844,160.43,160.4,3.15950001]
[1762538061831,0.04741844,160.43,160.41,8.734]
[1762538062222,0.04741844,160.43,160.41,3.12]
[1762538062425,0.04741844,160.43,160.4,0.03950001]
[1762538063029,0.04741844,160.43,160.4,3.15950001]
[1762538063626,0.04741844,160.43,160.4,8.77390001]
[1762538063931,0.04741844,160.43,160.4,3.15950001]
[1762538065739,0.04741844,160.43,160.4,0.03950001]
[1762538065941,3.21741844,160.43,160.4,0.03950001]
[1762538066630,0.04741844,160.43,160.4,3.15950001]
[1762538068738,3.21741844,160.43,160.4,0.03950001]
[1762538068944,0.04741844,160.43,160.4,3.15950001]
[1762538069337,3.21741844,160.43,160.4,0.03950001]
[1762538072645,0.04741844,160.43,160.4,0.03950001]
[1762538073239,0.04741844,160.43,160.41,8.6341]
[1762538073448,3.12,160.5,160.42,3.02]
[1762538074247,12.45517167,160.53,160.42,3.02]
[1762538074541,0.04724306,160.49,160.46,3.06751375]
[1762538075046,0.04724306,160.49,160.46,8.67991375]
[1762538075940,0.04724306,160.49,160.46,0.04751375]
[1762538076136,3.16724306,160.49,160.46,0.04751375]
[1762538076338,5.6148,160.4,160.31,3.02]
[1762538076536,3.12,160.42,160.32,3.02]
[1762538076942,8.7359,160.37,160.3,5.618]
[1762538077339,3.12,160.37,160.28,3.02]
[1762538077539,0.04419313,160.34,160.31,3.06435026]
[1762538078039,0.04419313,160.34,160.33,3.02]
[1762538078442,3.16419313,160.34,160.31,0.04435026]
[1762538078954,0.04419313,160.34,160.31,0.04435026]
[1762538079448,0.04419313,160.34,160.31,3.06435026]
[1762538079852,3.12,160.42,160.33,3.02]
[1762538080052,5.613,160.45,160.33,3.02]
[1762538080442,3.12,160.46,160.34,3.06]
[1762538080749,2.87,160.47,160.34,3.06]
[1762538080948,0.04720586,160.42,160.39,0.04567275]
[1762538081151,0.04444877,160.42,160.39,0.04796414]
[1762538081649,2.91444877,160.42,160.39,0.04796414]
[1762538083653,0.04444877,160.42,160.39,3.10796414]
[1762538084048,0.04444877,160.42,160.39,8.72276414]
[1762538084454,0.04444877,160.42,160.4,3.06]
[1762538084656,0.04444877,160.42,160.4,8.6745]
[1762538085651,0.04444877,160.42,160.41,3.06]
[1762538086150,0.04444877,160.42,160.4,5.6145]
[1762538086553,0.04444877,160.42,160.4,8.6745]
[1762538086948,0.04444877,160.42,160.41,3.06]
[1762538087261,2.87,160.5,160.44,5.613]
[1762538087450,9.30195069,160.53,160.41,3.06]
[1762538087648,9.30195069,160.52,160.41,3.06]
[1762538087854,8.4802,160.53,160.46,5.6124]
[1762538088055,9.30142131,160.52,160.46,5.6124]
[1762538088259,2.91491889,160.51,160.47,0.04573799]
[1762538089352,2.87,160.49,160.47,0.04573799]
[1762538089954,2.87,160.48,160.47,0.04573799]
[1762538090652,4.75969795,160.5,160.47,0.04573799]
[1762538090852,2.91491889,160.51,160.47,0.04573799]
[1762538091364,0.04491889,160.51,160.47,3.10573799]
[1762538091760,0.04491889,160.51,160.48,5.6117]
[1762538091956,0.04491889,160.51,160.48,3.06]
[1762538093165,0.04491889,160.51,160.48,8.6716]
[1762538093365,0.04491889,160.51,160.48,3.06]
[1762538094057,0.04491889,160.51,160.49,3.06]
[1762538094360,0.04491889,160.51,160.47,0.04573799]
[1762538094568,2.91491889,160.51,160.47,0.04573799]
[1762538095361,2.87,160.49,160.47,0.04573799]
[1762538096067,0.04491889,160.51,160.47,0.04573799]
[1762538096068,2.91491889,160.51,160.47,0.04573799]
[1762538096260,4.77100608,160.5,160.47,0.04573799]
[1762538096458,0.04491889,160.51,160.47,3.10573799]
[1762538097759,0.04491889,160.51,160.47,5.65763799]
[1762538098267,4.77683373,160.5,160.47,5.65763799]
[1762538098566,0.04491889,160.51,160.47,8.71763799]
[1762538098971,0.04491889,160.51,160.48,5.6116]
[1762538099170,0.04491889,160.51,160.48,8.6716]
[1762538099567,0.04491889,160.51,160.48,5.6116]
[1762538100068,0.04491889,160.51,160.47,3.10573799]
[1762538100667,0.04491889,160.51,160.47,8.71763799]
[1762538101173,0.04491889,160.51,160.48,8.6716]
[1762538101660,0.04491889,160.51,160.48,3.06]
[1762538102662,0.04491889,160.51,160.5,3.16]
[1762538104777,0.04491889,160.51,160.47,3.20573799]
[1762538105175,0.04491889,160.51,160.49,5.6113]
[1762538105676,0.04491889,160.51,160.5,3.16]
[1762538106178,3.13491889,160.51,160.47,0.04573799]
[1762538106384,8.7012,160.5,160.47,0.04573799]
[1762538106876,0.04491889,160.51,160.47,3.20573799]
[1762538107275,0.04491889,160.51,160.5,3.16]
[1762538108281,0.04491889,160.51,160.49,8.7713]
[1762538109379,0.04491889,160.51,160.5,3.16]
[1762538110271,0.04491889,160.51,160.49,8.7713]
[1762538110474,0.04491889,160.51,160.5,3.16]
[1762538111174,4.68203456,160.58,160.5,3.16]
[1762538111375,3.09,160.61,160.5,3.16]
[1762538111579,3.09,160.59,160.5,3.16]
[1762538111781,17.80738686,160.58,160.51,5.6106]
[1762538111983,7.77149623,160.57,160.51,5.6106]
[1762538112177,3.09,160.55,160.53,0.0473603]
[1762538112375,3.09,160.55,160.52,0.04502809]
[1762538112576,0.0416582,160.55,160.52,3.20502809]
[1762538112879,0.0416582,160.55,160.52,0.04502809]
[1762538114482,0.0416582,160.55,160.52,3.20502809]
[1762538114783,0.0416582,160.55,160.52,0.04502809]
[1762538115781,0.0416582,160.55,160.52,3.20502809]
[1762538116275,0.0416582,160.55,160.53,5.61]
[1762538116881,0.0416582,160.55,160.52,0.04502809]
[1762538117088,3.1316582,160.55,160.52,0.04502809]
[1762538117676,3.09,160.51,160.44,3.16]
[1762538118784,0.04204018,160.49,160.46,0.04499141]
[1762538118977,0.04204018,160.49,160.46,3.20499141]
[1762538119786,0.04204018,160.49,160.46,8.81739141]
[1762538119986,0.04204018,160.49,160.47,3.16]
[1762538121087,0.04204018,160.49,160.47,8.772]
[1762538121396,0.04204018,160.49,160.46,3.20499141]
[1762538124087,3.13204018,160.49,160.46,0.04499141]
[1762538124688,3.09,160.47,160.46,0.04499141]
[1762538124897,3.13204018,160.49,160.46,0.04499141]
[1762538125191,0.04204018,160.49,160.46,3.20499141]
[1762538125393,0.04204018,160.49,160.46,0.04499141]
[1762538126190,3.13204018,160.49,160.46,0.04499141]
[1762538126586,0.04204018,160.49,160.46,0.04499141]
[1762538127787,0.04204018,160.49,160.46,8.81729141]
[1762538127986,0.04204018,160.49,160.46,3.20499141]
[1762538128490,0.04204018,160.49,160.48,3.16]
[1762538130090,8.699,160.57,160.5,3.16]
[1762538130287,9.15306186,160.56,160.5,3.16]
[1762538130484,12.24306186,160.55,160.5,3.16]
[1762538130689,3.09,160.55,160.5,3.16]
[1762538130995,0.04722399,160.54,160.51,0.04594077]
[1762538132697,2.91722399,160.54,160.51,0.04594077]
[1762538133794,0.04722399,160.54,160.51,0.04594077]
[1762538134193,2.91722399,160.54,160.51,0.04594077]
[1762538134395,0.04722399,160.54,160.51,5.65664077]
[1762538134593,0.04722399,160.54,160.52,3.14]
[1762538135095,0.04722399,160.54,160.52,5.6101]
[1762538135500,0.04722399,160.54,160.52,8.7501]
[1762538135796,0.04722399,160.54,160.52,3.14]
[1762538136295,0.04722399,160.54,160.53,3.14]
[1762538137693,0.04722399,160.54,160.52,5.6103]
[1762538137998,0.04722399,160.54,160.52,8.7503]
[1762538138189,0.04722399,160.54,160.51,0.04594077]
[1762538139395,0.04722399,160.54,160.51,3.18594077]
[1762538139603,0.04722399,160.54,160.53,3.14]
[1762538140396,2.9,160.62,160.53,3.14]
[1762538140596,4.60424159,160.61,160.53,3.14]
[1762538140798,7.50424159,160.6,160.53,3.14]
[1762538141096,2.9,160.58,160.5,3.11]
[1762538141399,0.04451538,160.56,160.52,3.15526883]
[1762538141797,2.94451538,160.56,160.52,8.76546883]
[1762538142001,2.94451538,160.56,160.52,0.04526883]
[1762538144497,8.55381538,160.56,160.52,0.04526883]
[1762538144699,4.60672521,160.55,160.52,0.04526883]
[1762538145008,0.72664586,160.59,160.52,0.04526883]
[1762538145195,4.60669567,160.58,160.52,0.04526883]
[1762538145396,4.60669567,160.57,160.52,0.04526883]
[1762538145593,4.65201003,160.56,160.52,3.15526883]
[1762538145794,0.04531436,160.56,160.54,3.11]
[1762538146303,0.04531436,160.56,160.52,0.04526883]
[1762538146805,0.04531436,160.56,160.52,3.15526883]
[1762538147004,0.04531436,160.56,160.52,8.76556883]
[1762538147596,0.04531436,160.56,160.52,3.15526883]
[1762538147993,1.29531436,160.56,160.52,0.04526883]
[1762538148196,0.04531436,160.56,160.52,8.76546883]
[1762538148503,0.04531436,160.56,160.52,3.15526883]
[1762538148706,0.04531436,160.56,160.55,3.11]
[1762538149699,4.57897124,160.63,160.57,3.11]
[1762538149904,7.68747381,160.68,160.57,3.11]
[1762538149905,1.25,160.68,160.57,3.11]
[1762538150205,13.51431025,160.71,160.57,3.11]
[1762538150206,5.6057,160.66,160.57,3.11]
[1762538150408,4.57836558,160.65,160.57,3.11]
[1762538150600,5.6057,160.66,160.6,5.6075]
[1762538150906,1.29273214,160.65,160.61,0.04347138]
[1762538151205,1.29273214,160.65,160.61,0.04766205]
[1762538153806,1.25,160.62,160.52,3.11]
[1762538154500,1.25,160.6,160.52,3.11]
[1762538154807,0.04629722,160.58,160.54,0.04191327]
[1762538155212,1.29629722,160.58,160.54,0.04191327]
[1762538155704,1.25,160.57,160.54,0.04191327]
[1762538156610,1.29629722,160.58,160.54,0.04191327]
[1762538157303,6.8591,160.57,160.54,0.04191327]
[1762538157713,1.25,160.56,160.54,0.04191327]
[1762538158104,1.29629722,160.58,160.54,0.04191327]
[1762538159010,6.90489722,160.58,160.54,0.04191327]
[1762538159310,1.29629722,160.58,160.54,0.04191327]
[1762538159711,6.90479722,160.58,160.54,0.04191327]
[1762538159915,0.04629722,160.58,160.54,3.15191327]
[1762538160515,0.04629722,160.58,160.54,0.04191327]
[1762538160516,1.25,160.57,160.54,0.04191327]
[1762538160914,0.04629722,160.58,160.54,3.15191327]
[1762538161510,1.29629722,160.58,160.54,3.15191327]
[1762538161809,1.29629722,160.58,160.54,0.04191327]
[1762538162115,6.8589,160.57,160.54,0.04191327]
[1762538162317,1.25,160.57,160.54,0.04191327]
[1762538163113,6.859,160.57,160.54,0.04191327]
[1762538163504,1.25,160.56,160.46,3.1]
[1762538163705,1.25,160.53,160.46,3.1]
[1762538164109,1.25,160.5,160.43,5.6136]
[1762538164312,1.25,160.5,160.43,3.1]
[1762538164515,0.04744697,160.48,160.46,3.1]
[1762538164714,1.29744697,160.48,160.45,0.04111701]
[1762538165416,1.25,160.47,160.45,0.04111701]
[1762538165610,1.25,160.47,160.36,3.1]
[1762538166010,1.25,160.47,160.39,3.1]
[1762538166430,5.6126,160.47,160.39,8.715]
[1762538166625,1.25,160.44,160.41,0.04103856]
[1762538166824,1.29401137,160.44,160.41,0.04115971]
[1762538167724,0.04401137,160.44,160.41,0.04115971]
[1762538169429,1.29401137,160.44,160.41,0.04115971]
[1762538169623,0.04401137,160.44,160.41,3.14115971]
[1762538169924,0.04401137,160.44,160.41,5.65505971]
[1762538170127,0.04401137,160.44,160.41,0.04115971]
[1762538170336,0.04401137,160.44,160.41,3.14115971]
[1762538170527,0.04401137,160.44,160.41,0.04115971]
[1762538170924,0.04401137,160.44,160.41,3.14115971]
[1762538171128,0.04401137,160.44,160.43,3.1]
[1762538171433,0.04401137,160.44,160.41,3.14115971]
[1762538171631,0.04401137,160.44,160.41,8.75525971]
[1762538171828,0.04401137,160.44,160.41,0.04115971]
[1762538172033,0.04401137,160.44,160.41,3.14115971]
[1762538173633,0.04401137,160.44,160.42,5.6137]
[1762538173934,0.04401137,160.44,160.42,8.7137]
[1762538174131,0.04401137,160.44,160.41,3.14115971]
[1762538175029,0.04401137,160.44,160.43,3.1]
[1762538178142,18.76,160.58,160.46,3.1]
[1762538178143,6.13937937,160.54,160.46,3.1]
[1762538178326,10.45718032,160.57,160.46,3.1]
[1762538178530,5.6089,160.57,160.51,5.6105]
[1762538179035,1.330361,160.56,160.52,0.04257973]
[1762538181037,1.29,160.54,160.45,3.1]
[1762538181331,6.9003,160.53,160.45,8.7128]
[1762538181537,1.29,160.53,160.45,8.7128]
[1762538182133,1.33666115,160.51,160.47,0.04438904]
[1762538182331,1.33086929,160.51,160.47,0.04545554]
[1762538182838,0.04086929,160.51,160.48,3.1]
[1762538183029,0.04086929,160.51,160.47,0.04545554]
[1762538183231,1.33086929,160.51,160.47,0.04545554]
[1762538183634,0.04086929,160.51,160.47,3.14545554]
[1762538184248,0.04086929,160.51,160.47,8.75755554]
[1762538185332,0.04086929,160.51,160.47,5.65755554]
[1762538185538,1.33086929,160.51,160.47,0.04545554]
[1762538185734,0.04086929,160.51,160.47,3.14545554]
[1762538186041,0.04086929,160.51,160.47,8.75745554]
[1762538186434,0.04086929,160.51,160.48,3.1]
[1762538186634,0.04086929,160.51,160.48,8.7117]
[1762538186840,0.04086929,160.51,160.49,3.1]
[1762538187040,0.04086929,160.51,160.47,3.14545554]
[1762538187544,0.04086929,160.51,160.49,3.1]
[1762538188949,0.04086929,160.51,160.5,3.1]
[1762538191146,6.8982,160.59,160.52,8.7103]
[1762538192043,1.3340821,160.57,160.54,0.0463749]
[1762538192245,1.33619442,160.57,160.54,0.04447659]
[1762538193047,0.04619442,160.57,160.54,3.00447659]
[1762538193649,0.04619442,160.57,160.54,0.04447659]
[1762538193839,0.04619442,160.57,160.54,3.00447659]
[1762538194850,0.04619442,160.57,160.54,8.61407659]
[1762538195444,0.04619442,160.57,160.55,8.5693]
[1762538195650,0.04619442,160.57,160.56,2.96]
[1762538196450,0.04619442,160.57,160.54,0.04447659]
[1762538196648,0.04619442,160.57,160.54,3.00447659]
[1762538196854,1.29,160.65,160.54,3.00447659]
[1762538197055,4.80725966,160.64,160.58,5.6082]
[1762538197256,1.29,160.65,160.58,5.6082]
[1762538197650,4.80734295,160.64,160.58,5.6082]
[1762538197952,0.04099777,160.63,160.6,2.96]
[1762538198149,0.04627944,160.63,160.6,3.00607101]
[1762538198548,0.04627944,160.63,160.6,0.04607101]
[1762538200354,1.33627944,160.63,160.6,0.04607101]
[1762538200757,1.29,160.61,160.6,0.04607101]
[1762538201252,1.29,160.61,160.54,2.92]
[1762538201448,1.29,160.6,160.5,2.92]
[1762538202257,0.045692,160.57,160.53,2.96336003]
[1762538203959,0.045692,160.57,160.56,2.92]
[1762538205460,0.045692,160.57,160.54,2.92]
[1762538205960,0.045692,160.57,160.54,8.5295]
[1762538206259,0.045692,160.57,160.54,2.92]
[1762538206756,0.045692,160.57,160.54,8.5297]
[1762538206952,0.045692,160.57,160.55,2.92]
[1762538207550,0.045692,160.57,160.55,8.5293]
[1762538207758,0.045692,160.57,160.56,2.92]
[1762538208253,4.80059827,160.66,160.59,2.92]
[1762538208451,420.29,160.67,160.59,2.92]
[1762538208452,1.29,160.67,160.59,2.92]
[1762538208653,4.80059589,160.66,160.59,2.92]
[1762538208852,5.6058,160.66,160.59,2.92]
[1762538209352,1.33,160.63,160.61,0.04775919]
[1762538209754,1.36943151,160.64,160.61,0.04775919]
[1762538209955,0.03943151,160.64,160.61,0.04775919]
[1762538211457,1.36943151,160.64,160.61,0.04775919]
[1762538211659,0.03943151,160.64,160.61,2.96775919]
[1762538212251,0.03943151,160.64,160.63,2.92]
[1762538212661,0.03943151,160.64,160.62,8.5268]
[1762538213259,0.03943151,160.64,160.61,0.04775919]
[1762538213462,1.36943151,160.64,160.61,0.04775919]
[1762538213653,0.03943151,160.64,160.61,0.04775919]
[1762538213855,0.03943151,160.64,160.61,2.96775919]
[1762538215468,0.03943151,160.64,160.63,2.92]
[1762538218263,0.03943151,160.64,160.62,5.6068]
[1762538219065,0.03943151,160.64,160.62,8.5268]
[1762538219762,0.03943151,160.64,160.62,2.92]
[1762538220461,0.03943151,160.64,160.63,2.92]
[1762538221478,1.33,160.72,160.66,2.92]
[1762538221673,7.15385597,160.76,160.66,2.92]
[1762538221860,4.79986606,160.75,160.66,2.92]
[1762538222065,4.79986606,160.74,160.68,5.6048]
[1762538222367,4.83820944,160.73,160.69,3.01504544]
[1762538222566,0.04679653,160.73,160.71,8.5737]
[1762538222772,0.04679653,160.73,160.72,2.97]
[1762538224870,4.79126712,160.78,160.74,2.97]
[1762538225176,1.38,160.83,160.74,2.97]
[1762538225372,4.79840611,160.82,160.74,2.97]
[1762538225672,1.38,160.86,160.79,2.97]
[1762538225978,0.04444174,160.84,160.81,0.04656193]
[1762538226270,1.42468636,160.84,160.81,0.04202417]
[1762538226674,1.38,160.82,160.81,0.04202417]
[1762538227073,7.41296489,160.82,160.75,2.97]
[1762538227374,4.7902518,160.81,160.75,2.97]
[1762538227568,1.38,160.81,160.75,2.97]
[1762538227772,7.16385597,160.85,160.75,2.97]
[1762538227976,4.78992968,160.84,160.75,2.97]
[1762538228167,0.04148841,160.81,160.78,3.0095191]
[1762538228365,0.04148841,160.81,160.79,2.97]
[1762538230271,0.04148841,160.81,160.8,2.97]
[1762538232678,7.15499319,160.95,160.83,2.97]
[1762538232870,6.16151294,160.94,160.83,2.97]
[1762538233071,4.74151294,160.93,160.86,2.97]
[1762538233270,1.42,160.94,160.86,2.97]
[1762538233777,0.04541062,160.92,160.89,2.97]
[1762538234572,0.04541062,160.92,160.88,0.04243211]
[1762538234777,1.46541062,160.92,160.88,0.04243211]
[1762538237975,7.06211062,160.92,160.88,0.04243211]
[1762538238178,1.42,160.91,160.88,0.04243211]
[1762538241979,0.04541062,160.92,160.88,3.01243211]
[1762538242578,0.04541062,160.92,160.91,2.97]
[1762538242982,4.64872881,160.99,160.91,2.97]
[1762538243482,1.42,161.0,160.91,2.97]
[1762538243885,1.42,161.0,160.94,0.04305974]
[1762538244187,1.42,160.96,160.94,0.04305974]
[1762538244384,1.42,160.99,160.94,0.04305974]
[1762538244580,11.86265677,161.02,160.94,3.01305974]
[1762538244780,7.0136,161.01,160.94,8.60875974]
[1762538244979,1.42,161.01,160.94,3.01305974]
[1762538245592,1.42,161.01,160.97,2.97]
[1762538245794,1.42,161.05,160.97,3.01169706]
[1762538246304,1.42,161.05,160.99,5.594]
[1762538246499,1.42,161.05,161.0,3.01717245]
[1762538246798,1.42,161.05,161.0,0.04717245]
[1762538247193,1.42,161.05,161.0,3.01717245]
[1762538247393,1.42,161.08,161.02,5.5929]
[1762538247590,1.42,161.08,161.03,3.01436806]
[1762538247797,1.42,161.08,161.03,0.04436806]
[1762538248290,1.42,161.06,161.03,0.04436806]
[1762538248898,1.42,161.04,161.03,0.04436806]
[1762538249103,1.42,161.08,161.03,0.04436806]
[1762538249696,5.5908,161.09,161.03,3.01436806]
[1762538249901,1.42,161.1,161.03,3.01436806]
[1762538250203,7.0092,161.14,161.05,2.97]
[1762538250389,1.42,161.13,161.08,0.04660429]
[1762538250898,1.42,161.17,161.08,3.01660429]
[1762538251201,1.42,161.17,161.11,0.04397252]
[1762538251500,7.21688721,161.17,161.11,0.04397252]
[1762538251799,7.0085,161.16,161.11,0.04397252]
[1762538251995,1.42,161.15,161.11,0.04397252]
[1762538252999,1.41,161.13,161.11,0.04397252]
[1762538253201,6.9995,161.13,161.11,0.04397252]
[1762538253498,1.41,161.11,160.99,3.16]
[1762538253697,1.41,161.1,160.99,3.16]
[1762538254404,0.04322775,161.06,161.03,0.04022971]
[1762538254805,1.45322775,161.06,161.03,0.04022971]
[1762538255392,0.04322775,161.06,161.03,0.04022971]
[1762538255996,1.45322775,161.06,161.03,0.04022971]
[1762538256299,0.04322775,161.06,161.03,0.04022971]
[1762538258204,0.04322775,161.06,161.03,3.20022971]
[1762538258403,0.04322775,161.06,161.03,0.04022971]
[1762538259605,1.45322775,161.06,161.03,0.04022971]
[1762538260703,1.41,161.04,160.96,3.16]
[1762538261205,7.0033,161.02,160.93,3.08]
[1762538261907,0.04081279,160.99,160.96,0.04598909]
[1762538262204,1.45081279,160.99,160.96,0.04598909]
[1762538262509,0.04081279,160.99,160.96,0.04598909]
[1762538262700,5.63521279,160.99,160.96,0.04598909]
[1762538262900,1.41,160.98,160.96,0.04598909]
[1762538263103,0.04081279,160.99,160.96,0.04598909]
[1762538263703,1.45081279,160.99,160.96,0.04598909]
[1762538264506,1.41,160.98,160.96,0.04598909]
[1762538265203,4.68241363,160.97,160.89,3.08]
[1762538265403,1.41,161.0,160.89,3.08]
[1762538265604,10.27662038,160.99,160.89,3.08]
[1762538265807,4.68222038,160.98,160.93,3.08]
[1762538266004,1.41,161.0,160.93,3.08]
[1762538266204,0.04582067,160.98,160.95,0.04490914]
[1762538266804,6.09942449,160.97,160.95,0.04490914]
[1762538267111,4.68962041,160.96,160.95,0.04490914]
[1762538267512,0.04582067,160.98,160.95,3.12490914]
[1762538267812,4.69422203,160.97,160.95,3.12490914]
[1762538268008,0.04582067,160.98,160.95,3.12490914]
[1762538268710,4.69845001,160.97,160.95,3.12490914]
[1762538268900,1.45582067,160.98,160.95,0.04490914]
[1762538269106,4.69868845,160.97,160.95,0.04490914]
[1762538269305,4.69868845,160.96,160.95,0.04490914]
[1762538269510,6.10868845,160.96,160.95,0.04490914]
[1762538269706,6.10868845,160.96,160.84,67.79688721]
[1762538269707,5.93868845,160.96,160.84,62.0]
[1762538269911,5.79688721,160.92,160.82,3.08]
[1762538270108,4.69868845,160.91,160.82,3.08]
[1762538270421,5.69120099,160.94,160.75,5.79688721]
[1762538270422,4.69868845,160.9,160.85,3.08]
[1762538270620,11.28690099,160.95,160.85,3.08]
[1762538270807,0.04378276,160.92,160.88,3.1252311]
[1762538271306,1.37,160.9,160.88,0.0452311]
[1762538271510,4.70995342,160.89,160.88,0.0452311]
[1762538271703,6.07995342,160.89,160.88,0.0452311]
[1762538271903,1.37,160.88,160.8,3.08]
[1762538272105,1.37,160.86,160.76,3.08]
[1762538272304,6.08281966,160.85,160.76,3.08]
[1762538272508,1.37,160.83,160.76,3.08]
[1762538272814,0.04493079,160.81,160.78,0.04401973]
[1762538273702,5.6009,160.8,160.78,0.04401973]
[1762538273907,1.37,160.79,160.71,3.08]
[1762538275016,0.04642411,160.77,160.73,3.12348719]
[1762538275212,0.04528435,160.77,160.73,3.12348719]
[1762538276919,1.41528435,160.77,160.73,0.04348719]
[1762538278920,1.37,160.74,160.54,3.08]
[1762538279120,4.70583678,160.73,160.57,3.08]
[1762538279417,5.6042,160.71,160.61,3.08]
[1762538279811,6.9742,160.71,160.61,3.08]
[1762538280011,0.04176761,160.68,160.64,0.04348337]
[1762538280318,1.41176761,160.68,160.64,0.04348337]
[1762538281415,0.04176761,160.68,160.64,3.12348337]
[1762538281718,0.04176761,160.68,160.65,5.6057]
[1762538281919,5.79688721,160.81,160.66,3.08]
[1762538282123,1.37,160.8,160.69,3.06]
[1762538282418,1.37,160.8,160.72,3.06]
[1762538283012,0.04621079,160.78,160.75,3.06]
[1762538283212,0.04454259,160.78,160.75,3.10708688]
[1762538284511,0.04454259,160.78,160.75,8.70928688]
[1762538284707,0.04454259,160.78,160.76,3.06]
[1762538285121,0.04454259,160.78,160.76,8.6618]
[1762538285421,1.37,160.88,160.77,3.06]
[1762538285614,6.968,160.88,160.8,3.06]
[1762538286121,6.968,160.88,160.8,8.6605]
[1762538286319,0.04034432,160.86,160.82,3.10148762]
[1762538288719,1.41034432,160.86,160.82,0.04148762]
[1762538289520,0.04034432,160.86,160.82,3.10148762]
[1762538290625,1.41034432,160.86,160.82,0.04148762]
[1762538291429,0.04034432,160.86,160.83,3.06]
[1762538292222,0.04034432,160.86,160.84,3.06]
[1762538292720,0.04034432,160.86,160.84,8.6591]
[1762538293027,0.04034432,160.86,160.85,3.06]
[1762538293918,0.04034432,160.86,160.83,3.06]
[1762538294116,0.04034432,160.86,160.82,5.64148762]
[1762538294117,0.04034432,160.86,160.82,0.04148762]
[1762538294714,1.41034432,160.86,160.82,0.04148762]
[1762538295318,6.9692,160.85,160.82,0.04148762]
[1762538295524,1.37,160.84,160.82,0.04148762]
[1762538295922,1.37,160.83,160.75,3.06]
[1762538296523,1.37,160.83,160.72,5.6034]
[1762538296722,1.37,160.8,160.71,3.06]
[1762538296925,0.04709078,160.77,160.74,0.04669336]
[1762538297826,1.41709078,160.77,160.74,0.04669336]
[1762538298221,0.04709078,160.77,160.74,0.04669336]
[1762538298623,1.41709078,160.77,160.74,0.04669336]
[1762538299221,1.37,160.76,160.74,0.04669336]
[1762538299426,1.41709078,160.77,160.74,0.04669336]
[1762538299828,1.37,160.76,160.69,5.6046]
[1762538300229,6.9729,160.75,160.67,3.06]
[1762538300532,1.37,160.78,160.67,3.06]
[1762538300729,0.04727789,160.74,160.71,0.04601254]
[1762538301232,0.04727789,160.74,160.71,3.10601254]
[1762538302228,4.99192581,160.73,160.71,3.10601254]
[1762538302423,0.04727789,160.74,160.71,3.10601254]
[1762538302623,4.99153344,160.73,160.71,3.10601254]
[1762538302822,0.04727789,160.74,160.71,3.10601254]
[1762538304130,9.05747381,160.82,160.72,3.06]
[1762538304131,5.69120099,160.81,160.72,3.06]
[1762538304334,4.93299327,160.8,160.72,3.06]
[1762538304535,4.93299327,160.79,160.76,3.06]